[Event "FIDE World Cup 2013"]
[Site "TromsÃ¸"]
[Date "2013.08.13"]
[Round "1.3"]
[White "Lupulescu, Constantin"]
[Black "Sasikiran, Krishnan"]
[Result "1/2-1/2"]
[ECO "A38"]
[WhiteElo "2650"]
[BlackElo "2660"]
[PlyCount "69"]
[EventDate "2013.??.??"]
[EventCountry "NOR"]
[TimeControl "1500+10"]

1. c4 {[%emt 0:00:00]} c5 {[%emt 0:00:00]} 2. Nf3 {[%emt 0:00:05]} Nf6 {[%emt
0:00:06]} 3. Nc3 {[%emt 0:00:08]} Nc6 {[%emt 0:00:03]} 4. g3 {[%emt 0:00:36]}
g6 {[%emt 0:00:41]} 5. Bg2 {[%emt 0:00:16]} Bg7 {[%emt 0:00:08]} 6. d4 {[%emt
0:00:50]} cxd4 {[%emt 0:00:11]} 7. Nxd4 {[%emt 0:00:03]} O-O {[%emt 0:00:03]}
8. O-O {[%emt 0:00:04]} Qa5 {[%emt 0:00:03]} 9. e3 {[%emt 0:04:07]} Ne5 {[%emt
0:00:51]} 10. Qe2 {[%emt 0:01:15]} d6 {[%emt 0:00:54]} 11. Bd2 {[%emt 0:00:41]}
Bg4 {[%emt 0:01:01]} 12. f3 {[%emt 0:00:24]} Bd7 {[%emt 0:00:08]} 13. Rac1 {
[%emt 0:04:49]} Rfc8 {[%emt 0:00:57]} 14. b3 {[%emt 0:00:14]} Qd8 {[%emt 0:01:
55]} 15. Rfd1 {[%emt 0:00:38]} a6 {[%emt 0:01:25]} 16. Be1 {[%emt 0:00:47]}
Rab8 {[%emt 0:01:00]} 17. Kh1 {[%emt 0:01:57]} Nc6 {[%emt 0:02:57]} 18. a4 {
[%emt 0:00:41]} h5 {[%emt 0:04:28]} 19. h3 {[%emt 0:00:21]} Nxd4 {[%emt 0:00:
47]} 20. exd4 {[%emt 0:00:37]} Bh6 {[%emt 0:00:19]} 21. Rb1 {[%emt 0:01:56]} b5
{[%emt 0:03:39]} 22. cxb5 {[%emt 0:02:07]} axb5 {[%emt 0:00:03]} 23. Nxb5 {
[%emt 0:01:30]} Bxb5 {[%emt 0:00:46]} 24. axb5 {[%emt 0:00:01]} Qd7 {[%emt 0:
00:36]} 25. f4 {[%emt 0:01:17]} Rxb5 {[%emt 0:00:56]} 26. d5 {[%emt 0:02:34]}
Rcb8 {[%emt 0:00:54]} 27. Qe3 {[%emt 0:00:48]} Qf5 {[%emt 0:02:54]} 28. Qd3 {
[%emt 0:00:25]} h4 {[%emt 0:01:00]} 29. g4 {[%emt 0:00:11]} Qxd3 {[%emt 0:00:
04]} 30. Rxd3 {[%emt 0:00:01]} Bxf4 {[%emt 0:00:17]} 31. Bxh4 {[%emt 0:00:03]}
Nd7 {[%emt 0:00:26]} 32. Be1 {[%emt 0:00:37]} g5 {[%emt 0:00:34]} 33. b4 {
[%emt 0:00:03]} Nf6 {[%emt 0:00:07]} 34. Rbd1 {[%emt 0:00:14]} Rxb4 {[%emt 0:
00:11]} 35. Bxb4 {[%emt 0:00:05]} 1/2-1/2

[Event "FIDE World Cup 2013"]
[Site "TromsÃ¸"]
[Date "2013.08.13"]
[Round "1.3"]
[White "Najer, Evgeniy"]
[Black "Bruzon Batista, Lazaro"]
[Result "0-1"]
[ECO "C84"]
[WhiteElo "2628"]
[BlackElo "2691"]
[PlyCount "90"]
[EventDate "2013.??.??"]
[EventCountry "NOR"]
[TimeControl "1500+10"]

1. e4 {[%emt 0:00:00]} e5 {[%emt 0:00:00]} 2. Nf3 {[%emt 0:00:00]} Nc6 {[%emt
0:00:00]} 3. Bb5 {[%emt 0:00:00]} a6 {[%emt 0:00:00]} 4. Ba4 {[%emt 0:00:00]}
Nf6 {[%emt 0:00:02]} 5. O-O {[%emt 0:00:00]} Be7 {[%emt 0:00:03]} 6. d3 {[%emt
0:00:00]} d6 {[%emt 0:00:12]} 7. c3 {[%emt 0:00:06]} O-O {[%emt 0:00:04]} 8.
Nbd2 {[%emt 0:00:02]} Re8 {[%emt 0:00:10]} 9. Re1 {[%emt 0:00:22]} Bf8 {[%emt
0:00:01]} 10. h3 {[%emt 0:01:51]} b5 {[%emt 0:01:33]} 11. Bc2 {[%emt 0:00:05]}
Bb7 {[%emt 0:00:09]} 12. Nf1 {[%emt 0:00:23]} Nb8 {[%emt 0:01:07]} 13. Ng3 {
[%emt 0:00:33]} Nbd7 {[%emt 0:00:12]} 14. d4 {[%emt 0:00:17]} g6 {[%emt 0:00:
03]} 15. Bg5 {[%emt 0:00:37]} h6 {[%emt 0:00:15]} 16. Bd2 {[%emt 0:00:10]} Bg7
{[%emt 0:00:47]} 17. Rc1 {[%emt 0:05:02]} c6 {[%emt 0:03:57]} 18. Bb1 {[%emt 0:
00:38]} Qc7 {[%emt 0:00:35]} 19. h4 {[%emt 0:01:37]} h5 {[%emt 0:00:56]} 20.
Bg5 {[%emt 0:00:29]} Nh7 {[%emt 0:00:27]} 21. Be3 {[%emt 0:00:03]} Ndf6 {[%emt
0:01:10]} 22. Nh2 {[%emt 0:03:15]} Rad8 {[%emt 0:00:17]} 23. f4 {[%emt 0:00:28]
} exf4 {[%emt 0:01:57]} 24. Bxf4 {[%emt 0:00:03]} c5 {[%emt 0:00:18]} 25. Qd2 {
[%emt 0:04:11]} cxd4 {[%emt 0:00:30]} 26. cxd4 {[%emt 0:00:01]} Qb6 {[%emt 0:
00:02]} 27. Kh1 {[%emt 0:00:42]} Rd7 {[%emt 0:00:26]} 28. Re2 {[%emt 0:01:15]}
Rde7 {[%emt 0:01:39]} 29. Rce1 {[%emt 0:00:01]} Bc8 {[%emt 0:00:15]} 30. a3 {
[%emt 0:01:32]} Ng4 {[%emt 0:00:13]} 31. Nf3 {[%emt 0:00:15]} Nf8 {[%emt 0:00:
17]} 32. e5 {[%emt 0:01:50]} dxe5 {[%emt 0:00:37]} 33. Nxe5 {[%emt 0:00:03]}
Nxe5 {[%emt 0:01:30]} 34. Bxe5 {[%emt 0:00:01]} Qd8 {[%emt 0:04:25]} 35. Qc1 {
[%emt 0:03:53]} Rxe5 {[%emt 0:00:39]} 36. dxe5 {[%emt 0:00:40]} Qxh4+ {[%emt 0:
00:03]} 37. Kg1 {[%emt 0:00:02]} Qxg3 {[%emt 0:00:02]} 38. Ba2 {[%emt 0:00:11]}
Be6 {[%emt 0:00:25]} 39. Qc6 {[%emt 0:00:13]} Rd8 {[%emt 0:00:49]} 40. Qb6 {
[%emt 0:00:16]} Qg5 {[%emt 0:00:49]} 41. Bxe6 {[%emt 0:00:27]} Nxe6 {[%emt 0:
00:01]} 42. Qxa6 {[%emt 0:00:04]} Nf4 {[%emt 0:00:48]} 43. Rc2 {[%emt 0:00:02]}
Bxe5 {[%emt 0:00:31]} 44. Qb7 {[%emt 0:00:21]} Bd4+ {[%emt 0:00:12]} 45. Kf1 {
[%emt 0:00:02]} Qh4 {[%emt 0:00:22]} 0-1

[Event "FIDE World Cup 2013"]
[Site "TromsÃ¸"]
[Date "2013.08.13"]
[Round "1.3"]
[White "Popov, Ivan"]
[Black "Ragger, Markus"]
[Result "0-1"]
[ECO "C58"]
[WhiteElo "2632"]
[BlackElo "2680"]
[PlyCount "140"]
[EventDate "2013.??.??"]
[EventCountry "NOR"]
[TimeControl "1500+10"]

1. e4 {[%emt 0:00:00]} e5 {[%emt 0:00:00]} 2. Nf3 {[%emt 0:00:00]} Nc6 {[%emt
0:00:00]} 3. Bc4 {[%emt 0:00:00]} Nf6 {[%emt 0:00:00]} 4. Ng5 {[%emt 0:00:00]}
d5 {[%emt 0:00:07]} 5. exd5 {[%emt 0:00:00]} Na5 {[%emt 0:00:02]} 6. Bb5+ {
[%emt 0:00:00]} c6 {[%emt 0:00:04]} 7. dxc6 {[%emt 0:00:00]} bxc6 {[%emt 0:00:
01]} 8. Bd3 {[%emt 0:00:01]} Nd5 {[%emt 0:00:46]} 9. Nf3 {[%emt 0:00:04]} Bd6 {
[%emt 0:00:13]} 10. O-O {[%emt 0:00:03]} Nf4 {[%emt 0:00:08]} 11. Re1 {[%emt 0:
00:02]} Nxd3 {[%emt 0:00:03]} 12. cxd3 {[%emt 0:00:01]} O-O {[%emt 0:00:06]}
13. Nc3 {[%emt 0:00:02]} Re8 {[%emt 0:00:57]} 14. Ne4 {[%emt 0:00:02]} c5 {
[%emt 0:00:26]} 15. b3 {[%emt 0:01:08]} Bf8 {[%emt 0:01:04]} 16. Ba3 {[%emt 0:
01:06]} Nc6 {[%emt 0:00:53]} 17. Bxc5 {[%emt 0:10:32]} f5 {[%emt 0:04:20]} 18.
Neg5 {[%emt 0:00:02]} Bxc5 {[%emt 0:01:15]} 19. Qc2 {[%emt 0:00:14]} Qd5 {
[%emt 0:01:21]} 20. Rac1 {[%emt 0:01:51]} Bxf2+ {[%emt 0:01:38]} 21. Kxf2 {
[%emt 0:00:31]} Nb4 {[%emt 0:00:17]} 22. Rxe5 {[%emt 0:00:10]} Rxe5 {[%emt 0:
01:57]} 23. Qxc8+ {[%emt 0:00:12]} Re8 {[%emt 0:00:11]} 24. Qc4 {[%emt 0:00:04]
} Nxd3+ {[%emt 0:00:53]} 25. Kg3 {[%emt 0:01:28]} f4+ {[%emt 0:01:50]} 26. Kg4
{[%emt 0:01:06]} Rad8 {[%emt 0:00:49]} 27. Qxd5+ {[%emt 0:00:14]} Rxd5 {[%emt
0:00:01]} 28. Rc4 {[%emt 0:01:04]} h6 {[%emt 0:04:22]} 29. Nh3 {[%emt 0:01:08]}
Re2 {[%emt 0:00:10]} 30. Nxf4 {[%emt 0:00:21]} Nxf4 {[%emt 0:00:03]} 31. Kxf4 {
[%emt 0:00:10]} Rxg2 {[%emt 0:00:06]} 32. Rc7 {[%emt 0:00:55]} Rd8 {[%emt 0:02:
13]} 33. Rxa7 {[%emt 0:02:54]} Rf8+ {[%emt 0:00:11]} 34. Ke3 {[%emt 0:00:40]}
Re8+ {[%emt 0:00:02]} 35. Kd3 {[%emt 0:00:14]} Rf2 {[%emt 0:00:02]} 36. Nd4 {
[%emt 0:00:09]} Rxh2 {[%emt 0:00:07]} 37. a4 {[%emt 0:00:22]} Rd8 {[%emt 0:00:
53]} 38. Kc3 {[%emt 0:00:12]} Rc8+ {[%emt 0:00:02]} 39. Kb4 {[%emt 0:00:15]}
Rxd2 {[%emt 0:00:42]} 40. Nf5 {[%emt 0:00:08]} Rb8+ {[%emt 0:00:02]} 41. Kc3 {
[%emt 0:00:47]} Rg2 {[%emt 0:00:12]} 42. b4 {[%emt 0:00:01]} Rg5 {[%emt 0:00:
20]} 43. Ne7+ {[%emt 0:00:10]} Kh7 {[%emt 0:00:02]} 44. b5 {[%emt 0:00:16]} h5
{[%emt 0:00:18]} 45. Nc6 {[%emt 0:00:29]} Rf8 {[%emt 0:00:04]} 46. Kb4 {[%emt
0:00:15]} Rf4+ {[%emt 0:00:52]} 47. Ka5 {[%emt 0:00:10]} h4 {[%emt 0:00:03]}
48. Rd7 {[%emt 0:00:41]} h3 {[%emt 0:00:28]} 49. Rd1 {[%emt 0:00:52]} Rgg4 {
[%emt 0:01:21]} 50. Kb6 {[%emt 0:00:22]} Rxa4 {[%emt 0:00:10]} 51. Rh1 {[%emt
0:00:01]} Rh4 {[%emt 0:00:07]} 52. Kc7 {[%emt 0:00:02]} Rac4 {[%emt 0:00:09]}
53. Kd7 {[%emt 0:00:24]} Rh6 {[%emt 0:00:17]} 54. Ne5 {[%emt 0:00:35]} Rc5 {
[%emt 0:00:32]} 55. Nf7 {[%emt 0:00:07]} Rb6 {[%emt 0:00:35]} 56. Rxh3+ {[%emt
0:00:35]} Kg8 {[%emt 0:00:01]} 57. Nd8 {[%emt 0:00:37]} Rd5+ {[%emt 0:00:02]}
58. Ke7 {[%emt 0:00:22]} Re5+ {[%emt 0:00:01]} 59. Kd7 {[%emt 0:00:01]} Rbxb5 {
[%emt 0:00:02]} 60. Nc6 {[%emt 0:00:17]} Rbd5+ {[%emt 0:00:03]} 61. Kc7 {[%emt
0:00:02]} Re6 {[%emt 0:00:08]} 62. Rc3 {[%emt 0:00:02]} Rf5 {[%emt 0:00:12]}
63. Kd7 {[%emt 0:00:09]} Rff6 {[%emt 0:00:20]} 64. Ne7+ {[%emt 0:00:07]} Kf7 {
[%emt 0:00:10]} 65. Nc8 {[%emt 0:00:01]} Re1 {[%emt 0:00:36]} 66. Nd6+ {[%emt
0:00:04]} Kg8 {[%emt 0:00:02]} 67. Rd3 {[%emt 0:00:12]} Ra1 {[%emt 0:00:09]}
68. Nc8 {[%emt 0:00:14]} Raa6 {[%emt 0:00:13]} 69. Re3 {[%emt 0:00:11]} Rf7+ {
[%emt 0:00:12]} 70. Ke8 {[%emt 0:00:11]} Ra8 {[%emt 0:00:09]} 0-1

[Event "FIDE World Cup 2013"]
[Site "TromsÃ¸"]
[Date "2013.08.13"]
[Round "1.3"]
[White "Postny, Evgeny"]
[Black "Li, Chao b"]
[Result "0-1"]
[ECO "D17"]
[WhiteElo "2631"]
[BlackElo "2686"]
[PlyCount "86"]
[EventDate "2013.??.??"]
[EventCountry "NOR"]
[TimeControl "1500+10"]

1. d4 {[%emt 0:00:00]} d5 {[%emt 0:00:00]} 2. c4 {[%emt 0:00:00]} c6 {[%emt 0:
00:00]} 3. Nf3 {[%emt 0:00:00]} Nf6 {[%emt 0:00:00]} 4. Nc3 {[%emt 0:00:00]}
dxc4 {[%emt 0:00:01]} 5. a4 {[%emt 0:00:01]} Bf5 {[%emt 0:00:05]} 6. Ne5 {
[%emt 0:00:03]} Nbd7 {[%emt 0:00:04]} 7. Nxc4 {[%emt 0:00:04]} Qc7 {[%emt 0:00:
06]} 8. g3 {[%emt 0:00:04]} e5 {[%emt 0:00:04]} 9. dxe5 {[%emt 0:00:02]} Nxe5 {
[%emt 0:00:02]} 10. Bf4 {[%emt 0:00:04]} Rd8 {[%emt 0:00:03]} 11. Qc1 {[%emt 0:
01:01]} Bd6 {[%emt 0:00:02]} 12. Nxd6+ {[%emt 0:01:24]} Qxd6 {[%emt 0:00:02]}
13. Bg2 {[%emt 0:00:11]} O-O {[%emt 0:00:03]} 14. O-O {[%emt 0:00:11]} a5 {
[%emt 0:00:03]} 15. Rd1 {[%emt 0:01:11]} Qe7 {[%emt 0:00:04]} 16. h3 {[%emt 0:
02:50]} Ng6 {[%emt 0:07:48]} 17. Be3 {[%emt 0:01:45]} Qb4 {[%emt 0:01:07]} 18.
Bd2 {[%emt 0:04:42]} Qb3 {[%emt 0:03:31]} 19. e4 {[%emt 0:00:47]} Be6 {[%emt 0:
00:02]} 20. Ra3 {[%emt 0:00:37]} Qb6 {[%emt 0:00:27]} 21. Be3 {[%emt 0:01:36]}
Qb4 {[%emt 0:00:04]} 22. Rxd8 {[%emt 0:00:29]} Rxd8 {[%emt 0:00:02]} 23. f4 {
[%emt 0:00:03]} Bb3 {[%emt 0:02:20]} 24. e5 {[%emt 0:01:23]} Ne8 {[%emt 0:00:
59]} 25. Kh2 {[%emt 0:00:22]} f6 {[%emt 0:01:34]} 26. Ne4 {[%emt 0:02:38]} fxe5
{[%emt 0:01:31]} 27. f5 {[%emt 0:00:03]} Nf8 {[%emt 0:00:53]} 28. Bc5 {[%emt 0:
00:29]} Qc4 {[%emt 0:00:07]} 29. Qg5 {[%emt 0:00:29]} Rd7 {[%emt 0:00:18]} 30.
Bxf8 {[%emt 0:02:28]} Kxf8 {[%emt 0:00:10]} 31. Nd2 {[%emt 0:00:04]} Qc1 {
[%emt 0:00:16]} 32. Ne4 {[%emt 0:01:29]} Qxb2 {[%emt 0:01:23]} 33. Rxb3 {[%emt
0:02:15]} Qxb3 {[%emt 0:00:01]} 34. Nc5 {[%emt 0:00:01]} Qf7 {[%emt 0:00:02]}
35. Qe3 {[%emt 0:00:23]} Re7 {[%emt 0:00:43]} 36. g4 {[%emt 0:00:16]} Qc4 {
[%emt 0:00:44]} 37. Ne4 {[%emt 0:00:48]} Nf6 {[%emt 0:01:22]} 38. Nxf6 {[%emt
0:00:03]} gxf6 {[%emt 0:00:01]} 39. Qh6+ {[%emt 0:00:01]} Ke8 {[%emt 0:00:02]}
40. Qxf6 {[%emt 0:00:02]} Qf4+ {[%emt 0:00:07]} 41. Kh1 {[%emt 0:00:09]} Rd7 {
[%emt 0:01:04]} 42. Qe6+ {[%emt 0:00:43]} Kd8 {[%emt 0:00:14]} 43. Qb3 {[%emt
0:00:06]} e4 {[%emt 0:00:23]} 0-1

[Event "FIDE World Cup 2013"]
[Site "TromsÃ¸"]
[Date "2013.08.13"]
[Round "1.3"]
[White "Shimanov, Aleksandr"]
[Black "Jones, Gawain C B"]
[Result "1/2-1/2"]
[ECO "E81"]
[WhiteElo "2664"]
[BlackElo "2643"]
[PlyCount "217"]
[EventDate "2013.??.??"]
[EventCountry "NOR"]
[TimeControl "1500+10"]

1. d4 {[%emt 0:00:00]} Nf6 {[%emt 0:00:00]} 2. c4 {[%emt 0:00:00]} g6 {[%emt 0:
00:00]} 3. Nc3 {[%emt 0:00:00]} Bg7 {[%emt 0:00:00]} 4. e4 {[%emt 0:00:02]} d6
{[%emt 0:00:00]} 5. f3 {[%emt 0:00:07]} O-O {[%emt 0:00:01]} 6. Be3 {[%emt 0:
00:02]} c5 {[%emt 0:00:05]} 7. dxc5 {[%emt 0:00:09]} dxc5 {[%emt 0:00:02]} 8.
Qxd8 {[%emt 0:00:04]} Rxd8 {[%emt 0:00:01]} 9. Bxc5 {[%emt 0:00:03]} Nc6 {
[%emt 0:00:06]} 10. Nge2 {[%emt 0:00:04]} Nd7 {[%emt 0:00:17]} 11. Be3 {[%emt
0:00:03]} Nde5 {[%emt 0:00:15]} 12. Nf4 {[%emt 0:00:21]} Na5 {[%emt 0:00:08]}
13. Ncd5 {[%emt 0:00:38]} Nexc4 {[%emt 0:05:38]} 14. Bc5 {[%emt 0:00:19]} e6 {
[%emt 0:01:03]} 15. Nc7 {[%emt 0:00:11]} Bxb2 {[%emt 0:01:22]} 16. Rd1 {[%emt
0:00:34]} Bc3+ {[%emt 0:00:21]} 17. Ke2 {[%emt 0:00:04]} Rxd1 {[%emt 0:00:14]}
18. Kxd1 {[%emt 0:00:02]} b6 {[%emt 0:00:03]} 19. Nxa8 {[%emt 0:01:00]} bxc5 {
[%emt 0:00:02]} 20. Bxc4 {[%emt 0:00:59]} Nxc4 {[%emt 0:00:02]} 21. Nd3 {[%emt
0:01:53]} Ne3+ {[%emt 0:01:24]} 22. Ke2 {[%emt 0:00:26]} Bd4 {[%emt 0:01:07]}
23. Nc7 {[%emt 0:00:46]} c4 {[%emt 0:00:22]} 24. Rb1 {[%emt 0:00:35]} Nxg2 {
[%emt 0:04:04]} 25. Rb8 {[%emt 0:01:16]} cxd3+ {[%emt 0:00:04]} 26. Kxd3 {
[%emt 0:00:03]} Bg1 {[%emt 0:00:24]} 27. Rxc8+ {[%emt 0:01:15]} Kg7 {[%emt 0:
00:10]} 28. Ne8+ {[%emt 0:00:35]} Kh6 {[%emt 0:00:03]} 29. Rc7 {[%emt 0:01:29]}
f5 {[%emt 0:00:22]} 30. Nf6 {[%emt 0:01:01]} g5 {[%emt 0:01:37]} 31. Rxh7+ {
[%emt 0:03:47]} Kg6 {[%emt 0:00:01]} 32. e5 {[%emt 0:00:00]} Nf4+ {[%emt 0:00:
34]} 33. Kc4 {[%emt 0:00:15]} Nd5 {[%emt 0:00:12]} 34. Rh8 {[%emt 0:06:10]}
Nxf6 {[%emt 0:00:03]} 35. exf6 {[%emt 0:00:02]} Kxf6 {[%emt 0:00:03]} 36. a4 {
[%emt 0:01:06]} Ke5 {[%emt 0:01:45]} 37. h4 {[%emt 0:01:42]} gxh4 {[%emt 0:00:
30]} 38. Rxh4 {[%emt 0:00:02]} Bf2 {[%emt 0:00:02]} 39. Rh2 {[%emt 0:00:13]}
Bb6 {[%emt 0:00:06]} 40. Kd3 {[%emt 0:00:50]} Kd5 {[%emt 0:01:47]} 41. Rh4 {
[%emt 0:00:08]} Bf2 {[%emt 0:01:02]} 42. Rb4 {[%emt 0:00:06]} Bc5 {[%emt 0:00:
30]} 43. Rb7 {[%emt 0:00:55]} e5 {[%emt 0:00:18]} 44. Rd7+ {[%emt 0:00:05]} Ke6
{[%emt 0:00:03]} 45. Rh7 {[%emt 0:00:03]} Bb6 {[%emt 0:00:30]} 46. Rh5 {[%emt
0:00:25]} Kf6 {[%emt 0:00:23]} 47. Rh4 {[%emt 0:00:05]} Bf2 {[%emt 0:00:23]}
48. Rb4 {[%emt 0:00:19]} Kg5 {[%emt 0:00:51]} 49. a5 {[%emt 0:00:35]} Be1 {
[%emt 0:00:24]} 50. Rb5 {[%emt 0:00:10]} Kf4 {[%emt 0:00:07]} 51. Ke2 {[%emt 0:
00:02]} Bc3 {[%emt 0:00:13]} 52. a6 {[%emt 0:00:33]} Bd4 {[%emt 0:00:43]} 53.
Rb4 {[%emt 0:00:36]} Kg3 {[%emt 0:00:01]} 54. Rb3 {[%emt 0:01:06]} Kf4 {[%emt
0:00:03]} 55. Rd3 {[%emt 0:00:04]} Bb6 {[%emt 0:00:17]} 56. Rb3 {[%emt 0:00:31]
} Bd4 {[%emt 0:00:02]} 57. Rb1 {[%emt 0:00:07]} Kg3 {[%emt 0:00:09]} 58. Rh1 {
[%emt 0:00:05]} Kf4 {[%emt 0:00:10]} 59. Rh4+ {[%emt 0:00:05]} Kg3 {[%emt 0:00:
03]} 60. Rh5 {[%emt 0:00:13]} Kf4 {[%emt 0:00:01]} 61. Rh3 {[%emt 0:00:02]} Bb6
{[%emt 0:00:09]} 62. Rh7 {[%emt 0:00:18]} Bd4 {[%emt 0:00:11]} 63. Rf7 {[%emt
0:00:02]} e4 {[%emt 0:01:25]} 64. fxe4 {[%emt 0:00:05]} Kxe4 {[%emt 0:00:01]}
65. Re7+ {[%emt 0:00:09]} Kd5 {[%emt 0:00:01]} 66. Kd3 {[%emt 0:00:03]} Bb6 {
[%emt 0:00:26]} 67. Rf7 {[%emt 0:00:42]} Ke5 {[%emt 0:00:01]} 68. Rb7 {[%emt 0:
00:04]} Bg1 {[%emt 0:00:06]} 69. Rb1 {[%emt 0:00:04]} Bf2 {[%emt 0:00:11]} 70.
Rb5+ {[%emt 0:00:08]} Kf4 {[%emt 0:00:11]} 71. Rb2 {[%emt 0:00:25]} Bg1 {[%emt
0:00:05]} 72. Rb1 {[%emt 0:00:11]} Bf2 {[%emt 0:00:10]} 73. Rb5 {[%emt 0:00:17]
} Bg1 {[%emt 0:00:10]} 74. Ke2 {[%emt 0:00:11]} Ke4 {[%emt 0:00:06]} 75. Rb4+ {
[%emt 0:00:08]} Bd4 {[%emt 0:00:06]} 76. Rb7 {[%emt 0:00:09]} Bc5 {[%emt 0:00:
26]} 77. Rb8 {[%emt 0:00:12]} Bd4 {[%emt 0:00:44]} 78. Re8+ {[%emt 0:00:05]}
Kf4 {[%emt 0:00:02]} 79. Kd3 {[%emt 0:00:08]} Bf2 {[%emt 0:00:15]} 80. Rf8 {
[%emt 0:00:09]} Ke5 {[%emt 0:00:12]} 81. Ke2 {[%emt 0:00:15]} Bc5 {[%emt 0:00:
04]} 82. Re8+ {[%emt 0:00:02]} Kf4 {[%emt 0:00:18]} 83. Rc8 {[%emt 0:00:14]}
Bd4 {[%emt 0:00:12]} 84. Re8 {[%emt 0:00:15]} Bb6 {[%emt 0:00:30]} 85. Re6 {
[%emt 0:00:02]} Bg1 {[%emt 0:00:07]} 86. Rg6 {[%emt 0:00:14]} Bc5 {[%emt 0:00:
07]} 87. Rh6 {[%emt 0:00:09]} Ke4 {[%emt 0:00:17]} 88. Re6+ {[%emt 0:00:11]}
Kf4 {[%emt 0:00:42]} 89. Kd3 {[%emt 0:00:03]} Bg1 {[%emt 0:00:07]} 90. Kc4 {
[%emt 0:00:21]} Kf3 {[%emt 0:00:11]} 91. Kd5 {[%emt 0:00:08]} f4 {[%emt 0:00:
17]} 92. Ke5 {[%emt 0:00:11]} Be3 {[%emt 0:00:02]} 93. Rf6 {[%emt 0:00:14]} Bd2
{[%emt 0:00:37]} 94. Rf8 {[%emt 0:00:10]} Bc3+ {[%emt 0:00:25]} 95. Kf5 {[%emt
0:00:07]} Bd4 {[%emt 0:00:11]} 96. Rf7 {[%emt 0:00:06]} Bf2 {[%emt 0:00:35]}
97. Rb7 {[%emt 0:00:16]} Be3 {[%emt 0:00:13]} 98. Rb3 {[%emt 0:00:13]} Ke2 {
[%emt 0:00:04]} 99. Ke4 {[%emt 0:00:01]} Kd2 {[%emt 0:00:01]} 100. Rb7 {[%emt
0:00:10]} Kc3 {[%emt 0:00:08]} 101. Rb5 {[%emt 0:00:13]} Kc4 {[%emt 0:00:03]}
102. Rf5 {[%emt 0:00:02]} Kb4 {[%emt 0:00:06]} 103. Kd3 {[%emt 0:00:09]} Bb6 {
[%emt 0:00:08]} 104. Ke4 {[%emt 0:00:24]} Be3 {[%emt 0:00:03]} 105. Rh5 {[%emt
0:00:09]} Kc4 {[%emt 0:00:05]} 106. Rf5 {[%emt 0:00:12]} Kb4 {[%emt 0:00:02]}
107. Kd3 {[%emt 0:00:09]} Bb6 {[%emt 0:00:03]} 108. Rxf4+ {[%emt 0:00:09]} Kb5
{[%emt 0:00:01]} 109. Ke4 1/2-1/2

[Event "FIDE World Cup 2013"]
[Site "TromsÃ¸"]
[Date "2013.08.13"]
[Round "1.3"]
[White "Svidler, Peter"]
[Black "Ushenina, Anna"]
[Result "1-0"]
[ECO "A00"]
[WhiteElo "2746"]
[BlackElo "2500"]
[PlyCount "119"]
[EventDate "2013.??.??"]
[EventCountry "NOR"]
[TimeControl "1500+10"]

1. g3 {[%emt 0:00:00]} d5 {[%emt 0:00:00]} 2. Bg2 {[%emt 0:00:00]} c6 {[%emt 0:
00:11]} 3. d3 {[%emt 0:00:07]} e5 {[%emt 0:00:44]} 4. Nf3 {[%emt 0:00:05]} Bd6
{[%emt 0:00:15]} 5. O-O {[%emt 0:00:07]} Ne7 {[%emt 0:00:20]} 6. e4 {[%emt 0:
02:35]} O-O {[%emt 0:06:06]} 7. Re1 {[%emt 0:00:35]} dxe4 {[%emt 0:01:28]} 8.
dxe4 {[%emt 0:00:03]} f6 {[%emt 0:00:05]} 9. Nbd2 {[%emt 0:00:27]} Be6 {[%emt
0:00:06]} 10. Qe2 {[%emt 0:00:07]} Bc5 {[%emt 0:00:26]} 11. Rd1 {[%emt 0:00:34]
} Qc7 {[%emt 0:00:17]} 12. Nb3 {[%emt 0:01:44]} Bb6 {[%emt 0:00:25]} 13. a4 {
[%emt 0:00:33]} a5 {[%emt 0:00:29]} 14. Nfd2 {[%emt 0:00:05]} Rd8 {[%emt 0:00:
27]} 15. Re1 {[%emt 0:00:02]} Nd7 {[%emt 0:03:40]} 16. Nc4 {[%emt 0:00:05]} Ba7
{[%emt 0:01:12]} 17. Bd2 {[%emt 0:02:46]} b6 {[%emt 0:00:01]} 18. Red1 {[%emt
0:01:09]} Nf8 {[%emt 0:01:11]} 19. Be3 {[%emt 0:00:26]} Rxd1+ {[%emt 0:00:59]}
20. Rxd1 {[%emt 0:00:02]} Rb8 {[%emt 0:03:09]} 21. Bf1 {[%emt 0:00:53]} Ra8 {
[%emt 0:00:53]} 22. Qd2 {[%emt 0:01:14]} b5 {[%emt 0:00:38]} 23. axb5 {[%emt 0:
00:31]} cxb5 {[%emt 0:00:03]} 24. Qxa5 {[%emt 0:00:49]} Qxa5 {[%emt 0:04:26]}
25. Ncxa5 {[%emt 0:00:05]} Bxe3 {[%emt 0:00:06]} 26. fxe3 {[%emt 0:00:02]} Rc8
{[%emt 0:00:05]} 27. c3 {[%emt 0:00:22]} Bd7 {[%emt 0:00:13]} 28. Rd6 {[%emt 0:
00:29]} Nc6 {[%emt 0:00:13]} 29. Bxb5 {[%emt 0:01:27]} Nxa5 {[%emt 0:00:01]}
30. Bxd7 {[%emt 0:00:02]} Nxd7 {[%emt 0:00:43]} 31. Nxa5 {[%emt 0:00:02]} Nc5 {
[%emt 0:00:02]} 32. Rc6 {[%emt 0:00:25]} Rxc6 {[%emt 0:00:01]} 33. Nxc6 {[%emt
0:00:01]} Nxe4 {[%emt 0:00:03]} 34. Kg2 {[%emt 0:00:08]} Kf7 {[%emt 0:00:01]}
35. Kf3 {[%emt 0:00:02]} Nc5 {[%emt 0:00:10]} 36. b4 {[%emt 0:00:30]} Na4 {
[%emt 0:00:05]} 37. c4 {[%emt 0:00:03]} Ke6 {[%emt 0:00:08]} 38. Ke2 {[%emt 0:
00:09]} Nb2 {[%emt 0:00:10]} 39. Na5 {[%emt 0:00:03]} e4 {[%emt 0:00:05]} 40.
Kd2 {[%emt 0:00:15]} Ke5 {[%emt 0:00:10]} 41. Kc2 {[%emt 0:00:26]} Nd3 {[%emt
0:00:07]} 42. Kc3 {[%emt 0:00:04]} f5 {[%emt 0:00:09]} 43. Nc6+ {[%emt 0:00:09]
} Kd6 {[%emt 0:00:06]} 44. Nd4 {[%emt 0:00:03]} g6 {[%emt 0:00:05]} 45. b5 {
[%emt 0:00:45]} Kc5 {[%emt 0:00:14]} 46. Ne6+ {[%emt 0:00:10]} Kb6 {[%emt 0:00:
09]} 47. Nf8 {[%emt 0:00:08]} Ne5 {[%emt 0:00:23]} 48. Kd4 {[%emt 0:00:19]} Ng4
{[%emt 0:00:22]} 49. h3 {[%emt 0:00:32]} Nf2 {[%emt 0:00:15]} 50. h4 {[%emt 0:
00:56]} h5 {[%emt 0:00:17]} 51. Nxg6 {[%emt 0:00:06]} Nh1 {[%emt 0:00:01]} 52.
Nf4 {[%emt 0:00:19]} Nxg3 {[%emt 0:00:06]} 53. Nd5+ {[%emt 0:00:05]} Ka5 {
[%emt 0:00:31]} 54. Ke5 {[%emt 0:00:05]} Nf1 {[%emt 0:00:21]} 55. b6 {[%emt 0:
00:08]} Ka6 {[%emt 0:00:07]} 56. Kd6 {[%emt 0:00:26]} Nxe3 {[%emt 0:00:23]} 57.
Nxe3 {[%emt 0:00:08]} f4 {[%emt 0:00:01]} 58. Kc7 {[%emt 0:00:16]} fxe3 {[%emt
0:00:07]} 59. b7 {[%emt 0:00:02]} e2 {[%emt 0:00:15]} 60. b8=Q {[%emt 0:00:04]}
1-0